[Event "*** Titled Tuesday Blitz"]
[Site "Chess.com"]
[Date "2021.02.16"]
[Round "1"]
[White "Lady_Nika"]
[Black "Fusikk"]
[Result "0-1"]
[WhiteElo "2375"]
[BlackElo "2704"]
[TimeControl "180+1"]
[EndTime "10:06:32 PST"]
[Termination "Fusikk won by resignation"]

1. d4 {[%clk 0:02:59.3]} 1... Nf6 {[%clk 0:02:59.6]} 2. e3 {[%clk 0:02:56.8]}
2... b6 {[%clk 0:02:58.4]} 3. f4 {[%clk 0:02:56.2]} 3... Bb7 {[%clk 0:02:58.6]}
4. Nf3 {[%clk 0:02:55.1]} 4... g6 {[%clk 0:02:57.6]} 5. c3 {[%clk 0:02:55.6]}
5... Bg7 {[%clk 0:02:58]} 6. Bd3 {[%clk 0:02:51.9]} 6... O-O {[%clk 0:02:58.3]}
7. O-O {[%clk 0:02:51.7]} 7... d5 {[%clk 0:02:58.8]} 8. Nbd2 {[%clk 0:02:51.5]}
8... c5 {[%clk 0:02:59]} 9. Ne5 {[%clk 0:02:51.8]} 9... e6 {[%clk 0:02:56.7]}
10. Qe2 {[%clk 0:02:51.7]} 10... Qc8 {[%clk 0:02:55.9]} 11. Rf3 {[%clk
0:02:51.9]} 11... Ba6 {[%clk 0:02:55.8]} 12. Rh3 {[%clk 0:02:51]} 12... Bxd3
{[%clk 0:02:54.5]} 13. Nxd3 {[%clk 0:02:51.2]} 13... Na6 {[%clk 0:02:44.9]} 14.
Nf1 {[%clk 0:02:50]} 14... Nc7 {[%clk 0:02:44.8]} 15. Bd2 {[%clk 0:02:49.5]}
15... Nce8 {[%clk 0:02:45.2]} 16. g4 {[%clk 0:02:49.1]} 16... Nd6 {[%clk
0:02:44.1]} 17. Ng3 {[%clk 0:02:48.7]} 17... Nfe4 {[%clk 0:02:43.9]} 18. Nf2
{[%clk 0:02:47.1]} 18... Nxf2 {[%clk 0:02:39.4]} 19. Qxf2 {[%clk 0:02:46.3]}
19... f5 {[%clk 0:02:39.4]} 20. g5 {[%clk 0:02:45.5]} 20... b5 {[%clk
0:02:32.4]} 21. Re1 {[%clk 0:02:38.3]} 21... a5 {[%clk 0:02:31.3]} 22. a3 {[%clk
0:02:37.2]} 22... Ra7 {[%clk 0:02:31]} 23. Qg2 {[%clk 0:02:24.1]} 23... Rff7
{[%clk 0:02:25.5]} 24. Nf1 {[%clk 0:02:24.1]} 24... Ne4 {[%clk 0:02:24.8]} 25.
Rf3 {[%clk 0:02:24.3]} 25... Bf8 {[%clk 0:02:22.6]} 26. h4 {[%clk 0:02:23.9]}
26... Rg7 {[%clk 0:02:10.7]} 27. h5 {[%clk 0:02:22.6]} 27... Kf7 {[%clk
0:02:11.1]} 28. Ng3 {[%clk 0:02:20.9]} 28... Bd6 {[%clk 0:02:09.6]} 29. Nxe4
{[%clk 0:02:21.1]} 29... dxe4 {[%clk 0:02:10.5]} 30. Rh3 {[%clk 0:02:21.4]}
30... Qc6 {[%clk 0:02:08.5]} 31. Kf2 {[%clk 0:02:18]} 31... Qd5 {[%clk
0:02:06.3]} 32. Reh1 {[%clk 0:02:17]} 32... Qb3 {[%clk 0:02:06.3]} 33. Bc1
{[%clk 0:02:16.9]} 33... b4 {[%clk 0:02:06.4]} 34. hxg6+ {[%clk 0:02:14]} 34...
hxg6 {[%clk 0:02:07.3]} 35. Rh7 {[%clk 0:02:14]} 35... Bf8 {[%clk 0:02:04.8]}
36. Qf1 {[%clk 0:02:10.9]} 36... Qc2+ {[%clk 0:01:58.7]} 37. Kg3 {[%clk
0:02:09.8]} 37... Qd3 {[%clk 0:01:47.5]} 38. Qxd3 {[%clk 0:02:06.8]} 38... exd3
{[%clk 0:01:48.4]} 39. Rxg7+ {[%clk 0:02:06.7]} 39... Bxg7 {[%clk 0:01:49.3]}
40. dxc5 {[%clk 0:02:07]} 40... bxc3 {[%clk 0:01:46.5]} 41. bxc3 {[%clk
0:02:07]} 41... e5 {[%clk 0:01:38.1]} 42. fxe5 {[%clk 0:02:02.8]} 42... Bxe5+
{[%clk 0:01:39]} 43. Kf3 {[%clk 0:02:03.1]} 43... Rd7 {[%clk 0:01:29.3]} 44. Bd2
{[%clk 0:01:58.1]} 44... Rc7 {[%clk 0:01:26.1]} 45. e4 {[%clk 0:01:56.7]} 45...
Rxc5 {[%clk 0:01:22.6]} 46. exf5 {[%clk 0:01:56.5]} 46... gxf5 {[%clk
0:01:23.5]} 47. Ke3 {[%clk 0:01:48.1]} 47... Bxc3 {[%clk 0:01:19.8]} 48. Kxd3
{[%clk 0:01:47.4]} 48... Bxd2 {[%clk 0:01:18.3]} 49. Kxd2 {[%clk 0:01:47.2]}
49... Kg6 {[%clk 0:01:18.1]} 50. Rg1 {[%clk 0:01:47]} 50... f4 {[%clk
0:01:17.2]} 51. Kd3 {[%clk 0:01:46.7]} 51... Rxg5 {[%clk 0:01:17.1]} 52. Rb1
{[%clk 0:01:44.5]} 52... Re5 {[%clk 0:00:56.8]} 53. Rh1 {[%clk 0:01:35.3]} 53...
Re3+ {[%clk 0:00:48.6]} 54. Kd4 {[%clk 0:01:35.1]} 54... Rxa3 {[%clk 0:00:49.5]}
55. Rh4 {[%clk 0:01:33]} 55... Kg5 {[%clk 0:00:49]} 56. Rh1 {[%clk 0:01:32.1]}
56... Kg4 {[%clk 0:00:47.7]} 57. Rg1+ {[%clk 0:01:31.7]} 57... Kh3 {[%clk
0:00:47.5]} 58. Ke4 {[%clk 0:01:31]} 58... f3 {[%clk 0:00:46.6]} 0-1

[Event "*** Titled Tuesday Blitz"]
[Site "Chess.com"]
[Date "2021.02.16"]
[Round "1"]
[White "vpantev"]
[Black "lamomiablanca"]
[Result "0-1"]
[WhiteElo "2562"]
[BlackElo "2281"]
[TimeControl "180+1"]
[EndTime "10:06:33 PST"]
[Termination "lamomiablanca won by resignation"]

1. d4 {[%clk 0:03:00.9]} 1... Nf6 {[%clk 0:02:59.3]} 2. Nf3 {[%clk 0:03:00.6]}
2... g6 {[%clk 0:02:56.3]} 3. Bf4 {[%clk 0:03:00.3]} 3... Bg7 {[%clk 0:02:55.7]}
4. e3 {[%clk 0:03:00.7]} 4... O-O {[%clk 0:02:55.7]} 5. Be2 {[%clk 0:03:01.1]}
5... d6 {[%clk 0:02:56]} 6. c4 {[%clk 0:03:00.7]} 6... b6 {[%clk 0:02:48.1]} 7.
Nc3 {[%clk 0:03:00.6]} 7... Bb7 {[%clk 0:02:48.3]} 8. Qc2 {[%clk 0:03:01]} 8...
c5 {[%clk 0:02:44.3]} 9. d5 {[%clk 0:03:00.9]} 9... e6 {[%clk 0:02:43.2]} 10.
Rd1 {[%clk 0:02:50.3]} 10... exd5 {[%clk 0:02:42.8]} 11. cxd5 {[%clk 0:02:50.6]}
11... a6 {[%clk 0:02:40.7]} 12. a4 {[%clk 0:02:50.4]} 12... Qe7 {[%clk
0:02:37.5]} 13. O-O {[%clk 0:02:49]} 13... Nbd7 {[%clk 0:02:37.2]} 14. h3 {[%clk
0:02:47.7]} 14... Rfe8 {[%clk 0:02:33.8]} 15. Rfe1 {[%clk 0:02:42.6]} 15... Nh5
{[%clk 0:02:25.9]} 16. Bh2 {[%clk 0:02:41.8]} 16... Ne5 {[%clk 0:02:16.9]} 17.
Nxe5 {[%clk 0:02:41.2]} 17... Bxe5 {[%clk 0:02:16.6]} 18. Bxh5 {[%clk
0:02:30.6]} 18... Bxh2+ {[%clk 0:02:15.9]} 19. Kxh2 {[%clk 0:02:29.3]} 19...
Qe5+ {[%clk 0:02:16.4]} 20. Kg1 {[%clk 0:02:13.8]} 20... Qxh5 {[%clk 0:02:16.1]}
21. Qb3 {[%clk 0:02:14.1]} 21... Rab8 {[%clk 0:02:00.7]} 22. Qxb6 {[%clk
0:02:12]} 22... Bxd5 {[%clk 0:01:34.8]} 23. Qxa6 {[%clk 0:02:10.6]} 23... Ba8
{[%clk 0:01:01.4]} 24. Qxd6 {[%clk 0:01:54.2]} 24... Rxb2 {[%clk 0:01:00.4]} 25.
Rd2 {[%clk 0:01:54.5]} 25... Qg5 {[%clk 0:00:48.9]} 26. f4 {[%clk 0:01:49]}
26... Qg3 {[%clk 0:00:41.2]} 27. Ree2 {[%clk 0:01:30.6]} 27... Rb3 {[%clk
0:00:34.2]} 28. Rc2 {[%clk 0:01:15.8]} 28... Rxe3 {[%clk 0:00:27.5]} 29. Qd8+
{[%clk 0:01:02.5]} 29... Kg7 {[%clk 0:00:27]} 30. Qxa8 {[%clk 0:01:02.4]} 30...
Rexc3 {[%clk 0:00:20.7]} 31. Qe4 {[%clk 0:00:32.3]} 31... Rb1+ {[%clk
0:00:18.9]} 0-1

[Event "*** Titled Tuesday Blitz"]
[Site "Chess.com"]
[Date "2021.02.16"]
[Round "1"]
[White "Make_it_shine060"]
[Black "Shuvalov"]
[Result "1/2-1/2"]
[WhiteElo "2175"]
[BlackElo "2508"]
[TimeControl "180+1"]
[EndTime "10:06:33 PST"]
[Termination "Game drawn by repetition"]

1. d4 {[%clk 0:02:59.3]} 1... Nf6 {[%clk 0:02:51.4]} 2. c4 {[%clk 0:02:59.1]}
2... g6 {[%clk 0:02:50]} 3. Nc3 {[%clk 0:02:58.8]} 3... d5 {[%clk 0:02:50]} 4.
Bg5 {[%clk 0:02:58.5]} 4... Ne4 {[%clk 0:02:40.1]} 5. Bh4 {[%clk 0:02:57.6]}
5... Nxc3 {[%clk 0:02:38.8]} 6. bxc3 {[%clk 0:02:56.8]} 6... Bg7 {[%clk
0:02:39.4]} 7. Nf3 {[%clk 0:02:53.4]} 7... dxc4 {[%clk 0:02:38.2]} 8. e3 {[%clk
0:02:49.3]} 8... b5 {[%clk 0:02:27.8]} 9. a4 {[%clk 0:02:31]} 9... c6 {[%clk
0:02:26.3]} 10. Qb1 {[%clk 0:02:13]} 10... a6 {[%clk 0:02:17.8]} 11. axb5 {[%clk
0:02:08.1]} 11... cxb5 {[%clk 0:02:17.4]} 12. Qe4 {[%clk 0:02:06.5]} 12... Ra7
{[%clk 0:02:12.1]} 13. Be2 {[%clk 0:01:37.4]} 13... Bf5 {[%clk 0:02:03.9]} 14.
Qf4 {[%clk 0:01:30.1]} 14... h6 {[%clk 0:02:00.5]} 15. e4 {[%clk 0:01:27.3]}
15... Bc8 {[%clk 0:01:55.1]} 16. Qxb8 {[%clk 0:01:26.2]} 16... Rb7 {[%clk
0:01:42.5]} 17. Qa8 {[%clk 0:01:07.8]} 17... Rb6 {[%clk 0:01:33.1]} 18. Bg3
{[%clk 0:01:02.4]} 18... O-O {[%clk 0:01:30.8]} 19. O-O {[%clk 0:00:56]} 19...
Qd7 {[%clk 0:01:27.7]} 20. Ne5 {[%clk 0:00:50.7]} 20... Bxe5 {[%clk 0:01:20]}
21. Bxe5 {[%clk 0:00:48.6]} 21... Bb7 {[%clk 0:01:16.5]} 22. Qa7 {[%clk
0:00:47.4]} 22... Re6 {[%clk 0:01:14.1]} 23. Qc5 {[%clk 0:00:44.8]} 23... Bxe4
{[%clk 0:01:09.4]} 24. Rfd1 {[%clk 0:00:33.2]} 24... f6 {[%clk 0:01:04.9]} 25.
Bg3 {[%clk 0:00:31.1]} 25... Bxg2 {[%clk 0:00:57]} 26. Kxg2 {[%clk 0:00:30.2]}
26... Rxe2 {[%clk 0:00:56.1]} 27. Re1 {[%clk 0:00:28.8]} 27... Rxe1 {[%clk
0:00:53.6]} 28. Rxe1 {[%clk 0:00:28]} 28... Rf7 {[%clk 0:00:51.5]} 29. d5 {[%clk
0:00:25.7]} 29... Qf5 {[%clk 0:00:47.6]} 30. Rxe7 {[%clk 0:00:23.3]} 30... Rxe7
{[%clk 0:00:46.1]} 31. Qxe7 {[%clk 0:00:24.2]} 31... Qxd5+ {[%clk 0:00:46.4]}
32. Kg1 {[%clk 0:00:19.7]} 32... Qd1+ {[%clk 0:00:46]} 33. Kg2 {[%clk
0:00:19.8]} 33... Qd5+ {[%clk 0:00:46.1]} 34. Kg1 {[%clk 0:00:20.7]} 34... Qd1+
{[%clk 0:00:45.8]} 35. Kg2 {[%clk 0:00:21.6]} 35... Qd5+ {[%clk 0:00:45.8]}
1/2-1/2

[Event "*** Titled Tuesday Blitz"]
[Site "Chess.com"]
[Date "2021.02.16"]
[Round "1"]
[White "soumeow"]
[Black "louis198"]
[Result "0-1"]
[WhiteElo "2215"]
[BlackElo "2541"]
[TimeControl "180+1"]
[EndTime "10:06:38 PST"]
[Termination "louis198 won on time"]

1. Nf3 {[%clk 0:02:44.1]} 1... e6 {[%clk 0:03:00.9]} 2. c4 {[%clk 0:02:43.5]}
2... d5 {[%clk 0:02:58.6]} 3. g3 {[%clk 0:02:42.6]} 3... g6 {[%clk 0:02:53.6]}
4. Bg2 {[%clk 0:02:41.4]} 4... Bg7 {[%clk 0:02:50.8]} 5. O-O {[%clk 0:02:40.4]}
5... Ne7 {[%clk 0:02:41.5]} 6. d4 {[%clk 0:02:39.1]} 6... O-O {[%clk 0:02:40.7]}
7. Bf4 {[%clk 0:02:32.5]} 7... Nbc6 {[%clk 0:02:40.3]} 8. e3 {[%clk 0:02:28.8]}
8... f6 {[%clk 0:02:34.9]} 9. Nc3 {[%clk 0:02:12.2]} 9... g5 {[%clk 0:02:33.6]}
10. Nxg5 {[%clk 0:01:49.6]} 10... fxg5 {[%clk 0:02:33]} 11. Bxg5 {[%clk
0:01:50.1]} 11... dxc4 {[%clk 0:02:26.7]} 12. Be4 {[%clk 0:01:38.2]} 12... Qe8
{[%clk 0:02:23.6]} 13. Nb5 {[%clk 0:01:36.3]} 13... Qd7 {[%clk 0:02:22.3]} 14.
Qh5 {[%clk 0:01:17.2]} 14... Ng6 {[%clk 0:02:13.9]} 15. Rad1 {[%clk 0:00:55.9]}
15... a6 {[%clk 0:02:11.4]} 16. Nc3 {[%clk 0:00:34]} 16... Nb4 {[%clk
0:01:58.3]} 17. d5 {[%clk 0:00:31.5]} 17... exd5 {[%clk 0:01:50]} 18. Nxd5
{[%clk 0:00:29.5]} 18... Nd3 {[%clk 0:01:48.9]} 19. b3 {[%clk 0:00:17.3]} 19...
Qg4 {[%clk 0:01:39.5]} 20. Ne7+ {[%clk 0:00:15.3]} 20... Nxe7 {[%clk 0:01:22.5]}
21. Qxh7+ {[%clk 0:00:14.9]} 21... Kf7 {[%clk 0:01:22.6]} 22. Bxe7 {[%clk
0:00:11.9]} 22... Rh8 {[%clk 0:01:22.6]} 23. Bd5+ {[%clk 0:00:10.7]} 23... Kxe7
{[%clk 0:01:16.6]} 24. Qe4+ {[%clk 0:00:10.5]} 24... Qxe4 {[%clk 0:01:16]} 25.
Bxe4 {[%clk 0:00:10.7]} 25... Nc5 {[%clk 0:01:16.1]} 26. Bd5 {[%clk 0:00:09.3]}
26... c3 {[%clk 0:01:15.2]} 27. b4 {[%clk 0:00:06.4]} 27... Ne6 {[%clk
0:01:13.6]} 28. Rc1 {[%clk 0:00:05.4]} 28... c6 {[%clk 0:01:13.5]} 29. Bb3
{[%clk 0:00:04.8]} 29... Ng5 {[%clk 0:01:12.3]} 30. h4 {[%clk 0:00:04.6]} 30...
Nf3+ {[%clk 0:01:12.5]} 31. Kg2 {[%clk 0:00:04.7]} 31... Nd2 {[%clk 0:01:13.4]}
32. Rfd1 {[%clk 0:00:04.6]} 32... Bg4 {[%clk 0:01:13]} 33. Re1 {[%clk
0:00:04.4]} 33... Bf3+ {[%clk 0:01:13.1]} 34. Kh2 {[%clk 0:00:03.9]} 34... Be5
{[%clk 0:01:10.8]} 35. Kh3 {[%clk 0:00:03.3]} 35... Raf8 {[%clk 0:00:56.5]} 0-1

[Event "*** Titled Tuesday Blitz"]
[Site "Chess.com"]
[Date "2021.02.16"]
[Round "1"]
[White "c_r_e_e_p_e_r"]
[Black "cassoulet"]
[Result "0-1"]
[WhiteElo "2395"]
[BlackElo "2739"]
[TimeControl "180+1"]
[EndTime "10:06:40 PST"]
[Termination "cassoulet won on time"]

1. e4 {[%clk 0:03:00.9]} 1... c5 {[%clk 0:02:59.1]} 2. Nf3 {[%clk 0:03:01]} 2...
Nc6 {[%clk 0:02:59.3]} 3. Be2 {[%clk 0:03:01.1]} 3... Nf6 {[%clk 0:02:58.4]} 4.
Nc3 {[%clk 0:03:00.7]} 4... d6 {[%clk 0:02:45.3]} 5. d4 {[%clk 0:03:00.4]} 5...
cxd4 {[%clk 0:02:43.5]} 6. Nxd4 {[%clk 0:03:00.6]} 6... g6 {[%clk 0:02:42]} 7.
O-O {[%clk 0:03:00.4]} 7... Bg7 {[%clk 0:02:41.9]} 8. Be3 {[%clk 0:03:00.5]}
8... O-O {[%clk 0:02:41.7]} 9. Nb3 {[%clk 0:03:00.5]} 9... a6 {[%clk 0:02:40]}
10. a4 {[%clk 0:02:58.2]} 10... Be6 {[%clk 0:02:40]} 11. f4 {[%clk 0:02:44.5]}
11... Rc8 {[%clk 0:02:37.3]} 12. f5 {[%clk 0:02:39.3]} 12... Bxb3 {[%clk
0:02:35.8]} 13. cxb3 {[%clk 0:02:39.2]} 13... Ne5 {[%clk 0:02:33]} 14. a5 {[%clk
0:02:33.3]} 14... Qd7 {[%clk 0:02:25.6]} 15. Na4 {[%clk 0:02:29.7]} 15... Nxe4
{[%clk 0:02:17.6]} 16. Nb6 {[%clk 0:02:29.3]} 16... Qd8 {[%clk 0:02:17.7]} 17.
Nxc8 {[%clk 0:02:29]} 17... Qxc8 {[%clk 0:02:18.6]} 18. Rc1 {[%clk 0:02:28.5]}
18... Qd8 {[%clk 0:02:15.9]} 19. Bb6 {[%clk 0:02:28]} 19... Qe8 {[%clk
0:02:09.5]} 20. Bf3 {[%clk 0:02:23.9]} 20... gxf5 {[%clk 0:02:04]} 21. Bxe4
{[%clk 0:02:04.3]} 21... fxe4 {[%clk 0:02:04.9]} 22. Qd5 {[%clk 0:02:04.6]}
22... Nc6 {[%clk 0:01:39]} 23. Qxe4 {[%clk 0:01:59.4]} 23... e6 {[%clk
0:01:39.3]} 24. Rf3 {[%clk 0:01:38.9]} 24... f5 {[%clk 0:01:39.2]} 25. Qe2
{[%clk 0:01:31]} 25... Ne5 {[%clk 0:01:35.1]} 26. Rg3 {[%clk 0:01:28.5]} 26...
f4 {[%clk 0:01:35.1]} 27. Rgc3 {[%clk 0:01:23.8]} 27... Qg6 {[%clk 0:01:33.7]}
28. Rc8 {[%clk 0:01:18.5]} 28... f3 {[%clk 0:01:26.8]} 29. Rxf8+ {[%clk
0:01:17.1]} 29... Bxf8 {[%clk 0:01:27.7]} 30. Qf2 {[%clk 0:01:13.1]} 30... Nd3
{[%clk 0:01:26.6]} 31. Qxf3 {[%clk 0:00:55.9]} 31... Nxc1 {[%clk 0:01:26.1]} 32.
Qxb7 {[%clk 0:00:56.2]} 32... Ne2+ {[%clk 0:01:21.1]} 33. Kf2 {[%clk 0:00:51.9]}
33... Nf4 {[%clk 0:01:21.1]} 34. Be3 {[%clk 0:00:37.2]} 34... Qc2+ {[%clk
0:01:18.5]} 35. Kg3 {[%clk 0:00:37.2]} 35... Nd5 {[%clk 0:01:16]} 36. Bf2 {[%clk
0:00:25.5]} 36... Qd3+ {[%clk 0:01:15.7]} 37. Kg4 {[%clk 0:00:06]} 37... Qf5+
{[%clk 0:01:13]} 38. Kg3 {[%clk 0:00:05.2]} 38... Qg5+ {[%clk 0:01:05.9]} 39.
Kf3 {[%clk 0:00:04.1]} 39... Qf4+ {[%clk 0:01:05.9]} 40. Ke2 {[%clk 0:00:03.2]}
40... Qe4+ {[%clk 0:01:06.1]} 0-1

[Event "*** Titled Tuesday Blitz"]
[Site "Chess.com"]
[Date "2021.02.16"]
[Round "1"]
[White "Klavdia_Nik"]
[Black "Nuvas"]
[Result "0-1"]
[WhiteElo "2051"]
[BlackElo "2488"]
[TimeControl "180+1"]
[EndTime "10:06:40 PST"]
[Termination "Nuvas won on time"]

1. Nf3 {[%clk 0:02:58.7]} 1... d5 {[%clk 0:02:59.8]} 2. c4 {[%clk 0:02:54.8]}
2... d4 {[%clk 0:03:00]} 3. g3 {[%clk 0:02:50.9]} 3... c5 {[%clk 0:02:59.7]} 4.
b4 {[%clk 0:02:49.4]} 4... cxb4 {[%clk 0:02:57.7]} 5. a3 {[%clk 0:02:47.3]} 5...
bxa3 {[%clk 0:02:55.2]} 6. Bxa3 {[%clk 0:02:46.5]} 6... Nc6 {[%clk 0:02:55.2]}
7. d3 {[%clk 0:02:45.2]} 7... e5 {[%clk 0:02:54.1]} 8. Bxf8 {[%clk 0:02:42.9]}
8... Kxf8 {[%clk 0:02:55]} 9. Bg2 {[%clk 0:02:42.9]} 9... Nf6 {[%clk 0:02:55.6]}
10. O-O {[%clk 0:02:42.9]} 10... g6 {[%clk 0:02:56.1]} 11. Nbd2 {[%clk
0:02:32.5]} 11... Kg7 {[%clk 0:02:55.7]} 12. Qa4 {[%clk 0:02:32.3]} 12... Bd7
{[%clk 0:02:52.1]} 13. Rfb1 {[%clk 0:02:29.5]} 13... Qc7 {[%clk 0:02:43.1]} 14.
Ng5 {[%clk 0:02:24.3]} 14... a5 {[%clk 0:02:14]} 15. Rb2 {[%clk 0:01:15.9]}
15... Nb4 {[%clk 0:02:05]} 16. Qa3 {[%clk 0:01:15.7]} 16... Bc6 {[%clk
0:02:01.7]} 17. Nge4 {[%clk 0:01:04.2]} 17... Nd7 {[%clk 0:01:55.8]} 18. Nb3
{[%clk 0:00:37.3]} 18... f5 {[%clk 0:01:18.1]} 19. Ned2 {[%clk 0:00:34.2]} 19...
Bxg2 {[%clk 0:01:16.9]} 20. Kxg2 {[%clk 0:00:34.7]} 20... b6 {[%clk 0:01:17.3]}
21. Nc1 {[%clk 0:00:20.8]} 21... Rhe8 {[%clk 0:01:04.2]} 22. Na2 {[%clk
0:00:19.3]} 22... Na6 {[%clk 0:01:04.9]} 23. Rab1 {[%clk 0:00:13.6]} 23... Nac5
{[%clk 0:01:03.4]} 24. Nc1 {[%clk 0:00:11.9]} 24... Qc6+ {[%clk 0:00:51.9]} 25.
Kg1 {[%clk 0:00:09.1]} 25... Na4 {[%clk 0:00:52.4]} 26. Rc2 {[%clk 0:00:02.7]}
26... Nc3 {[%clk 0:00:51.4]} 27. Rbb2 {[%clk 0:00:02.6]} 27... e4 {[%clk
0:00:39.5]} 28. Nb1 {[%clk 0:00:02.2]} 28... exd3 {[%clk 0:00:36.4]} 0-1

[Event "*** Titled Tuesday Blitz"]
[Site "Chess.com"]
[Date "2021.02.16"]
[Round "1"]
[White "jens1102"]
[Black "AlexeiShirov"]
[Result "0-1"]
[WhiteElo "2430"]
[BlackElo "2845"]
[TimeControl "180+1"]
[EndTime "10:06:42 PST"]
[Termination "AlexeiShirov won by resignation"]

1. e4 {[%clk 0:03:00.9]} 1... e5 {[%clk 0:02:59.2]} 2. Nf3 {[%clk 0:03:01.2]}
2... Nc6 {[%clk 0:02:59.1]} 3. Bc4 {[%clk 0:03:01.3]} 3... Nf6 {[%clk
0:02:57.6]} 4. d3 {[%clk 0:03:01.5]} 4... h6 {[%clk 0:02:56.9]} 5. c3 {[%clk
0:03:01.4]} 5... d6 {[%clk 0:02:49.2]} 6. Nbd2 {[%clk 0:02:59.6]} 6... g5 {[%clk
0:02:46.4]} 7. Bb3 {[%clk 0:02:25.9]} 7... g4 {[%clk 0:02:41.3]} 8. Ng1 {[%clk
0:02:26.2]} 8... h5 {[%clk 0:02:33.8]} 9. Ne2 {[%clk 0:02:26.1]} 9... Bh6 {[%clk
0:02:29.3]} 10. Nf1 {[%clk 0:02:21.8]} 10... Bxc1 {[%clk 0:02:26.4]} 11. Rxc1
{[%clk 0:02:19.3]} 11... Be6 {[%clk 0:02:24.2]} 12. Ne3 {[%clk 0:02:18.8]} 12...
h4 {[%clk 0:02:12]} 13. Bxe6 {[%clk 0:02:00.6]} 13... fxe6 {[%clk 0:02:10.7]}
14. Qb3 {[%clk 0:02:01.5]} 14... Qd7 {[%clk 0:02:07.7]} 15. h3 {[%clk
0:01:53.8]} 15... gxh3 {[%clk 0:02:02.7]} 16. Rxh3 {[%clk 0:01:54.7]} 16...
O-O-O {[%clk 0:02:02.3]} 17. Rf3 {[%clk 0:00:58]} 17... Nh7 {[%clk 0:01:55.5]}
18. Ng4 {[%clk 0:00:18.7]} 18... Rdg8 {[%clk 0:01:52.8]} 19. Nf6 {[%clk
0:00:15.3]} 19... Nxf6 {[%clk 0:01:51.6]} 20. Rxf6 {[%clk 0:00:16.2]} 20... Rxg2
{[%clk 0:01:50.1]} 21. Qxe6 {[%clk 0:00:13.2]} 21... Qxe6 {[%clk 0:01:45.7]} 22.
Rxe6 {[%clk 0:00:14.1]} 22... h3 {[%clk 0:01:45.3]} 23. Ng3 {[%clk 0:00:14.4]}
23... Rxg3 {[%clk 0:01:32.3]} 24. fxg3 {[%clk 0:00:12.3]} 24... h2 {[%clk
0:01:31.7]} 25. Kf2 {[%clk 0:00:05.6]} 25... h1=Q {[%clk 0:01:29.5]} 26. Rxh1
{[%clk 0:00:06.2]} 26... Rxh1 {[%clk 0:01:28]} 27. g4 {[%clk 0:00:07.1]} 27...
Kd7 {[%clk 0:01:20.3]} 28. Rg6 {[%clk 0:00:06.7]} 28... Rh2+ {[%clk 0:01:17.8]}
29. Kg3 {[%clk 0:00:05.7]} 29... Rxb2 {[%clk 0:01:17.2]} 30. g5 {[%clk
0:00:05.9]} 30... Rxa2 {[%clk 0:01:09.9]} 31. Rf6 {[%clk 0:00:06.4]} 31... Ne7
{[%clk 0:01:01]} 32. g6 {[%clk 0:00:06]} 32... Nxg6 {[%clk 0:01:00.3]} 33. Rxg6
{[%clk 0:00:06.9]} 33... Rd2 {[%clk 0:00:59.7]} 34. d4 {[%clk 0:00:04.2]} 34...
exd4 {[%clk 0:00:57.7]} 35. cxd4 {[%clk 0:00:05.1]} 35... Rxd4 {[%clk
0:00:57.3]} 36. Kf4 {[%clk 0:00:04.8]} 36... d5 {[%clk 0:00:55.5]} 37. Ke5
{[%clk 0:00:05.3]} 37... Rxe4+ {[%clk 0:00:55.1]} 38. Kxd5 {[%clk 0:00:06]}
38... Re7 {[%clk 0:00:53.9]} 39. Rh6 {[%clk 0:00:06.4]} 39... a5 {[%clk
0:00:51.3]} 0-1

[Event "*** Titled Tuesday Blitz"]
[Site "Chess.com"]
[Date "2021.02.16"]
[Round "1"]
[White "Sanyura"]
[Black "Aya5ian"]
[Result "1-0"]
[WhiteElo "2739"]
[BlackElo "2393"]
[TimeControl "180+1"]
[EndTime "10:06:44 PST"]
[Termination "Sanyura won by checkmate"]

1. e4 {[%clk 0:02:34.5]} 1... c6 {[%clk 0:02:55.7]} 2. Nf3 {[%clk 0:02:33.7]}
2... d5 {[%clk 0:02:56.6]} 3. Nc3 {[%clk 0:02:34.6]} 3... dxe4 {[%clk
0:02:56.3]} 4. Nxe4 {[%clk 0:02:35.5]} 4... Nf6 {[%clk 0:02:56.8]} 5. Qe2 {[%clk
0:02:36]} 5... Bf5 {[%clk 0:02:55]} 6. Nxf6+ {[%clk 0:02:30.2]} 6... gxf6 {[%clk
0:02:55.9]} 7. d4 {[%clk 0:02:30.8]} 7... Nd7 {[%clk 0:02:35.4]} 8. g3 {[%clk
0:02:23.8]} 8... Bg7 {[%clk 0:02:22.3]} 9. Bg2 {[%clk 0:02:23.6]} 9... O-O
{[%clk 0:02:18.1]} 10. O-O {[%clk 0:02:21.6]} 10... e5 {[%clk 0:02:09.2]} 11.
Nh4 {[%clk 0:02:00.7]} 11... Bg6 {[%clk 0:02:03.2]} 12. f4 {[%clk 0:01:37.4]}
12... exf4 {[%clk 0:01:40]} 13. Bxf4 {[%clk 0:01:35]} 13... Re8 {[%clk
0:01:32.3]} 14. Qf2 {[%clk 0:01:26.4]} 14... Nb6 {[%clk 0:01:28.8]} 15. c3
{[%clk 0:01:20.3]} 15... Nd5 {[%clk 0:01:27.8]} 16. Bd2 {[%clk 0:01:13.7]} 16...
Qd7 {[%clk 0:01:25.3]} 17. Rae1 {[%clk 0:01:05.3]} 17... Rxe1 {[%clk 0:01:22.8]}
18. Rxe1 {[%clk 0:01:04.5]} 18... Re8 {[%clk 0:01:23.4]} 19. Rxe8+ {[%clk
0:00:50]} 19... Qxe8 {[%clk 0:01:24.3]} 20. Nf5 {[%clk 0:00:50.3]} 20... Bf8
{[%clk 0:01:04.8]} 21. h4 {[%clk 0:00:47.1]} 21... h5 {[%clk 0:00:57.1]} 22. c4
{[%clk 0:00:35.4]} 22... Nc7 {[%clk 0:00:40.4]} 23. Bc3 {[%clk 0:00:27.2]} 23...
Qe6 {[%clk 0:00:31.8]} 24. Ne3 {[%clk 0:00:21.5]} 24... Kg7 {[%clk 0:00:15.3]}
25. d5 {[%clk 0:00:21.3]} 25... Qd6 {[%clk 0:00:13.5]} 26. c5 {[%clk 0:00:20.3]}
26... Qxc5 {[%clk 0:00:10.9]} 27. Qxf6+ {[%clk 0:00:20.9]} 27... Kg8 {[%clk
0:00:10.4]} 28. Qh8# {[%clk 0:00:21.2]} 1-0